[Event "MČR družstev mladších žáků 2024"]
[Site "Harrachov, Czech Republic"]
[Date "2024.06.14"]
[Round "2.14"]
[White "Mauric Jan"]
[Black "Sudrich Radek"]
[Result "1-0"]
[TimeControl "25+10"]
[WhiteFideId "23744200"]
[BlackFideId "23734361"]
[WhiteElo "1306"]
[BlackElo "1470"]

1. d4 {[%clk 00:25:16]} {[%emt 00:00:03]} d5 {[%clk 00:25:19]} {[%emt
00:00:01]} 2. Bf4 {[%clk 00:25:22]} {[%emt 00:00:04]} c5 {[%clk 00:25:27]}
{[%emt 00:00:02]} 3. Nf3 {[%clk 00:24:31]} {[%emt 00:01:01]} Nc6 {[%clk
00:25:19]} {[%emt 00:00:18]} 4. e3 {[%clk 00:24:17]} {[%emt 00:00:25]} Nf6
{[%clk 00:25:26]} {[%emt 00:00:02]} 5. Bb5 {[%clk 00:23:11]} {[%emt 00:01:17]}
Bd7 {[%clk 00:25:33]} {[%emt 00:00:03]} 6. Nbd2 {[%clk 00:22:38]} {[%emt
00:00:42]} e6 {[%clk 00:25:37]} {[%emt 00:00:06]} 7. O-O {[%clk 00:22:06]}
{[%emt 00:00:43]} a6 {[%clk 00:25:26]} {[%emt 00:00:21]} 8. Bxc6 {[%clk
00:22:07]} {[%emt 00:00:09]} Bxc6 {[%clk 00:25:32]} {[%emt 00:00:04]} 9. c3
{[%clk 00:21:40]} {[%emt 00:00:36]} Bd6 {[%clk 00:25:31]} {[%emt 00:00:11]} 10.
Bxd6 {[%clk 00:20:57]} {[%emt 00:00:54]} Qxd6 {[%clk 00:25:38]} {[%emt
00:00:03]} 11. Ne5 {[%clk 00:20:27]} {[%emt 00:00:39]} Nd7 {[%clk 00:25:40]}
{[%emt 00:00:08]} 12. Ndf3 {[%clk 00:19:30]} {[%emt 00:01:08]} f6 {[%clk
00:25:39]} {[%emt 00:00:10]} 13. Nxc6 {[%clk 00:19:23]} {[%emt 00:00:18]} bxc6
{[%clk 00:25:39]} {[%emt 00:00:09]} 14. b3 {[%clk 00:18:06]} {[%emt 00:01:28]}
O-O {[%clk 00:25:36]} {[%emt 00:00:13]} 15. Qc2 {[%clk 00:17:20]} {[%emt
00:00:57]} e5 {[%clk 00:25:20]} {[%emt 00:00:26]} 16. Rad1 {[%clk 00:16:07]}
{[%emt 00:01:23]} e4 {[%clk 00:25:18]} {[%emt 00:00:12]} 17. dxc5 {[%clk
00:13:53]} {[%emt 00:02:25]} Nxc5 {[%clk 00:25:18]} {[%emt 00:00:09]} 18. Nd4
{[%clk 00:13:52]} {[%emt 00:00:11]} Ne6 {[%clk 00:23:53]} {[%emt 00:01:33]} 19.
Nf5 {[%clk 00:12:38]} {[%emt 00:01:26]} Qc7 {[%clk 00:23:30]} {[%emt 00:00:30]}
20. c4 {[%clk 00:11:59]} {[%emt 00:00:50]} Rad8 {[%clk 00:21:57]} {[%emt
00:01:43]} 21. cxd5 {[%clk 00:11:46]} {[%emt 00:00:24]} cxd5 {[%clk 00:22:02]}
{[%emt 00:00:05]} 22. Qxc7 {[%clk 00:11:42]} {[%emt 00:00:13]} Nxc7 {[%clk
00:22:11]} {[%emt 00:00:02]} 23. Rc1 {[%clk 00:10:56]} {[%emt 00:00:56]} Rd7
{[%clk 00:21:41]} {[%emt 00:00:38]} 24. Nd4 {[%clk 00:10:45]} {[%emt 00:00:21]}
Nb5 {[%clk 00:21:15]} {[%emt 00:00:37]} 25. Nxb5 {[%clk 00:10:12]} {[%emt
00:00:43]} axb5 {[%clk 00:21:23]} {[%emt 00:00:02]} 26. Rc5 {[%clk 00:10:21]}
{[%emt 00:00:01]} Ra8 {[%clk 00:21:23]} {[%emt 00:00:09]} 27. Rxb5 {[%clk
00:09:35]} {[%emt 00:00:56]} Rxa2 {[%clk 00:21:31]} {[%emt 00:00:02]} 28. Rd1
{[%clk 00:09:41]} {[%emt 00:00:04]} Ra8 {[%clk 00:21:19]} {[%emt 00:00:22]} 29.
g3 {[%clk 00:09:41]} {[%emt 00:00:11]} Rad8 {[%clk 00:21:27]} {[%emt 00:00:02]}
30. Rd4 {[%clk 00:09:49]} {[%emt 00:00:02]} Kf7 {[%clk 00:21:29]} {[%emt
00:00:08]} 31. Ra5 {[%clk 00:08:37]} {[%emt 00:01:21]} Rb8 {[%clk 00:21:03]}
{[%emt 00:00:36]} 32. b4 {[%clk 00:08:18]} {[%emt 00:00:29]} Rdb7 {[%clk
00:21:00]} {[%emt 00:00:14]} 33. Raxd5 {[%clk 00:06:52]} {[%emt 00:01:36]} Rxb4
{[%clk 00:21:04]} {[%emt 00:00:05]} 34. Rd7+ {[%clk 00:06:49]} {[%emt
00:00:13]} Kg6 {[%clk 00:21:09]} {[%emt 00:00:05]} 35. Rxb4 {[%clk 00:06:03]}
{[%emt 00:00:56]} Rxb4 {[%clk 00:21:17]} {[%emt 00:00:02]} 36. Rd4 {[%clk
00:06:10]} {[%emt 00:00:03]} Rxd4 {[%clk 00:19:48]} {[%emt 00:01:40]} 37. exd4
{[%clk 00:06:19]} {[%emt 00:00:01]} Kf5 {[%clk 00:19:58]} 38. Kf1 {[%clk
00:06:26]} {[%emt 00:00:04]} Ke6 {[%clk 00:20:07]} 39. Ke2 {[%clk 00:06:34]}
{[%emt 00:00:02]} Kd5 {[%clk 00:20:16]} 40. Ke3 {[%clk 00:06:36]} {[%emt
00:00:08]} g5 {[%clk 00:20:16]} {[%emt 00:00:09]} 41. g4 {[%clk 00:06:45]}
{[%emt 00:00:02]} h6 {[%clk 00:19:23]} {[%emt 00:01:04]} 42. h3 {[%clk
00:06:54]} {[%emt 00:00:01]} f5 {[%clk 00:19:23]} {[%emt 00:00:10]} 43. gxf5
{[%clk 00:07:01]} {[%emt 00:00:03]} h5 {[%clk 00:19:32]} 44. f6 {[%clk
00:07:02]} {[%emt 00:00:08]} Ke6 {[%clk 00:19:41]} {[%emt 00:00:01]} 45. Kxe4
{[%clk 00:06:43]} {[%emt 00:00:29]} Kxf6 {[%clk 00:19:50]} 46. d5 {[%clk
00:06:42]} {[%emt 00:00:10]} h4 {[%clk 00:19:55]} {[%emt 00:00:06]} 47. f3
{[%clk 00:06:47]} {[%emt 00:00:05]} Kg6 {[%clk 00:19:56]} {[%emt 00:00:08]} 48.
Ke5 {[%clk 00:06:47]} {[%emt 00:00:09]} Kh6 {[%clk 00:20:03]} {[%emt 00:00:04]}
49. d6 {[%clk 00:06:48]} {[%emt 00:00:09]} g4 {[%clk 00:20:09]} {[%emt
00:00:05]} 50. fxg4 {[%clk 00:06:54]} {[%emt 00:00:04]} Kg5 {[%clk 00:20:18]}
{[%emt 00:00:01]} 51. d7 {[%clk 00:07:01]} {[%emt 00:00:02]} Kh6 {[%clk
00:20:28]} 52. d8=Q {[%clk 00:07:04]} {[%emt 00:00:05]} Kg6 {[%clk 00:20:35]}
{[%emt 00:00:04]} 53. Qf6+ {[%clk 00:07:12]} {[%emt 00:00:03]} Kh7 {[%clk
00:20:43]} {[%emt 00:00:02]} 54. Qg5 {[%clk 00:07:20]} {[%emt 00:00:01]} Kh8
{[%clk 00:20:51]} {[%emt 00:00:02]} 55. Kf6 {[%clk 00:07:29]} {[%emt 00:00:01]}
Kh7 {[%clk 00:20:59]} {[%emt 00:00:01]} 56. Qg7+ {[%emt 00:00:05]} 1-0



[ePGN "0.1;DGT LiveChess/2.2.6"]

[Event "MČR družstev mladších žáků 2024"]
[Site "Harrachov, Czech Republic"]
[Date "2024.06.14"]
[Round "2.15"]
[White "Moravec Rene"]
[Black "Hujova Tess"]
[Result "1/2-1/2"]
[TimeControl "25+10"]
[WhiteFideId "23745274"]
[BlackFideId "23744936"]
[WhiteElo "1295"]
[BlackElo "1311"]

1. e4 {[%clk 00:25:15]} {[%emt 00:00:04]} e6 {[%clk 00:25:19]} {[%emt
00:00:01]} 2. d4 {[%clk 00:25:23]} {[%emt 00:00:02]} b6 {[%clk 00:25:28]}
{[%emt 00:00:01]} 3. Nc3 {[%clk 00:25:22]} {[%emt 00:00:11]} Bb7 {[%clk
00:25:37]} {[%emt 00:00:02]} 4. Nf3 {[%clk 00:25:13]} {[%emt 00:00:19]} Bb4
{[%clk 00:25:45]} {[%emt 00:00:02]} 5. e5 {[%clk 00:25:04]} {[%emt 00:00:19]}
d6 {[%clk 00:25:37]} {[%emt 00:00:17]} 6. exd6 {[%clk 00:25:04]} {[%emt
00:00:10]} Qxd6 {[%clk 00:25:37]} {[%emt 00:00:10]} 7. Bd2 {[%clk 00:24:32]}
{[%emt 00:00:42]} Nf6 {[%clk 00:24:34]} {[%emt 00:01:12]} 8. Nb5 {[%clk
00:24:07]} {[%emt 00:00:34]} Bxd2+ {[%clk 00:24:11]} {[%emt 00:00:34]} 9. Qxd2
{[%clk 00:24:04]} {[%emt 00:00:14]} Qd7 {[%clk 00:23:18]} {[%emt 00:01:02]} 10.
Ne5 {[%clk 00:23:47]} {[%emt 00:00:26]} Qe7 {[%clk 00:23:17]} {[%emt 00:00:12]}
11. O-O-O {[%clk 00:20:50]} {[%emt 00:03:07]} O-O {[%clk 00:22:37]} {[%emt
00:00:49]} 12. h4 {[%clk 00:20:04]} {[%emt 00:00:56]} a6 {[%clk 00:21:07]}
{[%emt 00:01:39]} 13. Nc3 {[%clk 00:20:00]} {[%emt 00:00:15]} Nbd7 {[%clk
00:20:42]} {[%emt 00:00:36]} 14. f3 {[%clk 00:17:03]} {[%emt 00:03:06]} Rad8
{[%clk 00:19:41]} {[%emt 00:01:12]} 15. Qg5 {[%clk 00:16:33]} {[%emt 00:00:37]}
h6 {[%emt 00:00:34]} 16. Qe3 {[%clk 00:14:09]} {[%emt 00:01:27]} b5 {[%clk
00:14:06]} {[%emt 00:06:31]} 17. g4 {[%clk 00:13:31]} {[%emt 00:00:48]} Nxe5
{[%clk 00:13:45]} {[%emt 00:00:32]} 18. dxe5 {[%clk 00:13:31]} {[%emt
00:00:10]} Rxd1+ {[%clk 00:13:42]} {[%emt 00:00:12]} 19. Kxd1 {[%clk 00:13:35]}
{[%emt 00:00:05]} Rd8+ {[%clk 00:13:21]} {[%emt 00:00:32]} 20. Bd3 {[%clk
00:13:38]} {[%emt 00:00:07]} c5 {[%clk 00:12:44]} {[%emt 00:00:47]} 21. exf6
{[%clk 00:13:32]} {[%emt 00:00:15]} Qxf6 {[%clk 00:12:33]} {[%emt 00:00:22]} 22.
Kc1 {[%clk 00:12:39]} {[%emt 00:01:00]} Qxf3 {[%clk 00:11:58]} {[%emt
00:00:47]} 23. Qxf3 {[%clk 00:12:34]} {[%emt 00:00:15]} Bxf3 {[%clk 00:12:06]}
{[%emt 00:00:03]} 24. Rg1 {[%clk 00:12:19]} {[%emt 00:00:20]} c4 {[%clk
00:10:47]} {[%emt 00:01:34]} 25. Be4 {[%clk 00:12:20]} {[%emt 00:00:05]} Bxe4
{[%clk 00:10:54]} {[%emt 00:00:06]} 26. Nxe4 {[%clk 00:12:29]} {[%emt
00:00:02]} Rd4 {[%clk 00:10:21]} {[%emt 00:00:43]} 27. Re1 {[%clk 00:12:11]}
{[%emt 00:00:27]} f5 {[%clk 00:09:36]} {[%emt 00:00:56]} 28. gxf5 {[%clk
00:12:20]} {[%emt 00:00:01]} exf5 {[%clk 00:09:44]} {[%emt 00:00:03]} 29. Ng3
{[%clk 00:12:15]} {[%emt 00:00:13]} Rxh4 {[%clk 00:09:06]} {[%emt 00:00:48]} 30.
Nxf5 {[%clk 00:12:23]} {[%emt 00:00:02]} Rf4 {[%clk 00:09:09]} {[%emt
00:00:05]} 31. Ne7+ {[%clk 00:12:06]} {[%emt 00:00:28]} Kf7 {[%clk 00:08:11]}
{[%emt 00:01:09]} 32. Nd5 {[%clk 00:12:02]} {[%emt 00:00:14]} Rd4 {[%clk
00:08:00]} {[%emt 00:00:20]} 33. Nc7 {[%clk 00:11:32]} {[%emt 00:00:39]} Rd6
{[%clk 00:07:31]} {[%emt 00:00:39]} 1/2-1/2



[ePGN "0.1;DGT LiveChess/2.2.6"]

[Event "MČR družstev mladších žáků 2024"]
[Site "Harrachov, Czech Republic"]
[Date "2024.06.14"]
[Round "2.16"]
[White "Jenikova Sabina"]
[Black "Sevcikova Terezie"]
[Result "0-1"]
[TimeControl "25+10"]
[WhiteFideId "23759860"]
[BlackFideId "23766425"]
[WhiteElo "1114"]
[BlackElo "1447"]

1. b4 {[%clk 00:25:07]} {[%emt 00:00:13]} e5 {[%clk 00:24:45]} {[%emt
00:00:36]} 2. Bb2 {[%clk 00:25:14]} {[%emt 00:00:02]} Bxb4 {[%clk 00:24:14]}
{[%emt 00:00:41]} 3. Bxe5 {[%clk 00:25:21]} {[%emt 00:00:03]} Nf6 {[%clk
00:24:20]} {[%emt 00:00:03]} 4. a3 {[%clk 00:25:13]} {[%emt 00:00:19]} Bc5
{[%clk 00:24:14]} {[%emt 00:00:14]} 5. e3 {[%clk 00:25:13]} {[%emt 00:00:12]}
Nc6 {[%clk 00:24:18]} {[%emt 00:00:05]} 6. Bb2 {[%clk 00:25:20]} {[%emt
00:00:03]} O-O {[%clk 00:24:24]} {[%emt 00:00:04]} 7. Nf3 {[%clk 00:25:10]}
{[%emt 00:00:21]} d5 {[%clk 00:24:26]} {[%emt 00:00:08]} 8. c4 {[%clk
00:24:59]} {[%emt 00:00:20]} Be6 {[%clk 00:24:11]} {[%emt 00:00:25]} 9. cxd5
{[%clk 00:24:58]} {[%emt 00:00:12]} Bxd5 {[%clk 00:23:53]} {[%emt 00:00:27]} 10.
Be2 {[%clk 00:25:00]} {[%emt 00:00:09]} Re8 {[%clk 00:23:53]} {[%emt 00:00:10]}
11. Nc3 {[%clk 00:25:07]} {[%emt 00:00:03]} Be6 {[%clk 00:23:01]} {[%emt
00:01:02]} 12. O-O {[%clk 00:25:03]} {[%emt 00:00:14]} Qe7 {[%clk 00:22:38]}
{[%emt 00:00:33]} 13. Qc2 {[%clk 00:24:34]} {[%emt 00:00:40]} Rad8 {[%clk
00:22:38]} {[%emt 00:00:09]} 14. d4 {[%clk 00:24:08]} {[%emt 00:00:36]} Bb6
{[%clk 00:20:58]} {[%emt 00:01:49]} 15. Rfd1 {[%clk 00:22:25]} {[%emt
00:01:53]} Na5 {[%clk 00:20:25]} {[%emt 00:00:42]} 16. Qb1 {[%clk 00:21:01]}
{[%emt 00:01:34]} Nb3 {[%clk 00:20:05]} {[%emt 00:00:28]} 17. Ra2 {[%clk
00:19:41]} {[%emt 00:01:32]} Nxd4 {[%emt 00:05:47]} 18. Nxd4 {[%clk 00:18:15]}
{[%emt 00:00:43]} Bxa2 {[%clk 00:15:11]} {[%emt 00:00:21]} 19. Qxa2 {[%clk
00:18:06]} {[%emt 00:00:19]} Bxd4 {[%clk 00:15:09]} {[%emt 00:00:12]} 20. exd4
{[%clk 00:17:40]} {[%emt 00:00:36]} c5 {[%clk 00:14:47]} {[%emt 00:00:32]} 21.
d5 {[%clk 00:17:19]} {[%emt 00:00:32]} Ne4 {[%clk 00:13:48]} {[%emt 00:01:04]}
22. Nxe4 {[%clk 00:16:22]} {[%emt 00:01:12]} Qxe4 {[%clk 00:13:51]} {[%emt
00:00:06]} 23. Bc4 {[%clk 00:15:41]} {[%emt 00:00:52]} a6 {[%clk 00:13:10]}
{[%emt 00:00:52]} 24. g3 {[%clk 00:15:20]} {[%emt 00:00:30]} b5 {[%clk
00:12:36]} {[%emt 00:00:43]} 25. Bf1 {[%clk 00:15:18]} {[%emt 00:00:13]} Qf3
{[%clk 00:11:49]} {[%emt 00:00:47]} 26. Qa1 {[%clk 00:14:50]} {[%emt 00:00:48]}
f6 {[%clk 00:11:41]} {[%emt 00:00:18]} 27. Bg2 {[%clk 00:13:49]} {[%emt
00:01:10]} Qf5 {[%clk 00:11:24]} {[%emt 00:00:26]} 28. Qc1 {[%clk 00:12:26]}
{[%emt 00:01:33]} Re2 {[%clk 00:10:52]} {[%emt 00:00:42]} 29. Bc3 {[%clk
00:10:39]} {[%emt 00:01:59]} Qxf2+ {[%clk 00:09:55]} {[%emt 00:01:07]} 30. Kh1
{[%clk 00:10:04]} {[%emt 00:00:45]} Qxg2# {[%clk 00:10:02]} {[%emt 00:00:03]}
0-1



[ePGN "0.1;DGT LiveChess/2.2.6"]

[Event "MČR družstev mladších žáků 2024"]
[Site "Harrachov, Czech Republic"]
[Date "2024.06.14"]
[Round "2.17"]
[White "Chauvin Simon"]
[Black "Polacek Matous"]
[Result "1-0"]
[TimeControl "25+10"]
[WhiteFideId "23739053"]
[BlackFideId "23760435"]
[WhiteElo "1085"]
[BlackElo "1152"]

1. e4 {[%clk 00:25:13]} {[%emt 00:00:06]} e5 {[%clk 00:25:16]} {[%emt
00:00:04]} 2. Nf3 {[%clk 00:24:49]} {[%emt 00:00:35]} Nc6 {[%clk 00:25:18]}
{[%emt 00:00:06]} 3. d4 {[%clk 00:23:54]} {[%emt 00:01:06]} exd4 {[%clk
00:25:14]} {[%emt 00:00:12]} 4. Nxd4 {[%clk 00:24:00]} {[%emt 00:00:06]} d6
{[%clk 00:24:56]} {[%emt 00:00:27]} 5. Bc4 {[%clk 00:20:20]} {[%emt 00:03:51]}
Nf6 {[%clk 00:23:31]} {[%emt 00:01:33]} 6. Nc3 {[%clk 00:16:03]} {[%emt
00:04:29]} Qe7 {[%clk 00:20:39]} {[%emt 00:03:00]} 7. Bg5 {[%clk 00:12:50]}
{[%emt 00:03:24]} Be6 {[%clk 00:19:01]} {[%emt 00:01:46]} 8. Nxe6 {[%clk
00:07:50]} {[%emt 00:05:12]} fxe6 {[%clk 00:18:54]} {[%emt 00:00:17]} 9. O-O
{[%clk 00:05:19]} {[%emt 00:02:41]} O-O-O {[%clk 00:16:50]} {[%emt 00:02:15]}
10. Bb5 {[%clk 00:02:09]} {[%emt 00:03:20]} Ne5 {[%clk 00:15:22]} {[%emt
00:01:35]} 11. f4 {[%clk 00:01:29]} {[%emt 00:00:53]} Ned7 {[%clk 00:14:56]}
{[%emt 00:00:35]} 12. f5 {[%clk 00:00:19]} {[%emt 00:01:22]} Nc5 {[%clk
00:13:58]} {[%emt 00:01:05]} 13. Bc4 {[%clk 00:00:15]} {[%emt 00:00:16]} Qd7
{[%clk 00:11:48]} {[%emt 00:02:19]} 14. Bxf6 {[%clk 00:00:14]} {[%emt
00:00:12]} gxf6 {[%clk 00:11:43]} {[%emt 00:00:15]} 15. b4 {[%clk 00:00:19]}
{[%emt 00:00:05]} Na6 {[%clk 00:10:45]} {[%emt 00:01:07]} 16. Bxe6 {[%clk
00:00:24]} {[%emt 00:00:06]} Qxe6 {[%clk 00:10:30]} {[%emt 00:00:24]} 17. fxe6
{[%clk 00:00:32]} {[%emt 00:00:03]} Bg7 {[%clk 00:09:36]} {[%emt 00:01:04]} 18.
Nd5 {[%clk 00:00:31]} {[%emt 00:00:11]} Rhe8 {[%clk 00:08:12]} {[%emt
00:01:32]} 19. Qg4 {[%clk 00:00:31]} {[%emt 00:00:10]} f5 {[%clk 00:06:55]}
{[%emt 00:01:22]} 20. Qxg7 {[%clk 00:00:14]} {[%emt 00:00:33]} c6 {[%clk
00:03:15]} {[%emt 00:03:49]} 21. Ne7+ {[%clk 00:00:14]} {[%emt 00:00:10]} Kb8
{[%clk 00:02:55]} {[%emt 00:00:30]} 22. Nxf5 {[%clk 00:00:22]} {[%emt
00:00:02]} Nc7 {[%clk 00:01:19]} {[%emt 00:01:47]} 23. e7 {[%clk 00:00:16]}
{[%emt 00:00:15]} Rd7 {[%clk 00:00:54]} {[%emt 00:00:34]} 24. Qf8 {[%clk
00:00:12]} {[%emt 00:00:15]} a6 {[%clk 00:00:31]} {[%emt 00:00:33]} 25. Qf7
{[%clk 00:00:13]} {[%emt 00:00:09]} 1-0



[ePGN "0.1;DGT LiveChess/2.2.6"]

[Event "MČR družstev mladších žáků 2024"]
[Site "Harrachov, Czech Republic"]
[Date "2024.06.14"]
[Round "2.19"]
[White "Mrazik Marek"]
[Black "Velim Vojtech"]
[Result "0-1"]
[TimeControl "25+10"]
[WhiteFideId "23754737"]
[BlackFideId "23749407"]
[WhiteElo "1515"]
[BlackElo "1814"]

1. d4 {[%clk 00:25:03]} {[%emt 00:00:16]} d5 {[%clk 00:25:18]} {[%emt
00:00:03]} 2. Bf4 {[%clk 00:24:27]} {[%emt 00:00:46]} Nf6 {[%clk 00:25:22]}
{[%emt 00:00:05]} 3. e3 {[%clk 00:24:24]} {[%emt 00:00:13]} Bf5 {[%clk
00:25:30]} {[%emt 00:00:02]} 4. Nf3 {[%clk 00:24:31]} {[%emt 00:00:03]} e6
{[%clk 00:25:25]} {[%emt 00:00:15]} 5. Bd3 {[%clk 00:24:39]} {[%emt 00:00:02]}
Bg6 {[%clk 00:25:34]} {[%emt 00:00:02]} 6. c3 {[%clk 00:23:25]} {[%emt
00:01:24]} Be7 {[%clk 00:25:35]} {[%emt 00:00:08]} 7. Qc2 {[%clk 00:22:56]}
{[%emt 00:00:39]} O-O {[%clk 00:25:33]} {[%emt 00:00:12]} 8. Nbd2 {[%clk
00:22:40]} {[%emt 00:00:26]} c5 {[%clk 00:25:42]} {[%emt 00:00:02]} 9. Bxg6
{[%clk 00:22:29]} {[%emt 00:00:22]} hxg6 {[%clk 00:25:50]} {[%emt 00:00:01]} 10.
h3 {[%clk 00:22:11]} {[%emt 00:00:28]} Nc6 {[%clk 00:25:54]} {[%emt 00:00:06]}
11. O-O {[%clk 00:22:16]} {[%emt 00:00:05]} Rc8 {[%clk 00:25:41]} {[%emt
00:00:23]} 12. Qb3 {[%clk 00:22:15]} {[%emt 00:00:11]} Qb6 {[%clk 00:25:49]}
{[%emt 00:00:02]} 13. Rac1 {[%clk 00:21:20]} {[%emt 00:01:04]} Rfd8 {[%clk
00:24:41]} {[%emt 00:01:18]} 14. Qxb6 {[%clk 00:19:05]} {[%emt 00:02:25]} axb6
{[%clk 00:24:49]} {[%emt 00:00:02]} 15. a3 {[%clk 00:19:11]} {[%emt 00:00:05]}
Ne8 {[%clk 00:22:53]} {[%emt 00:02:06]} 16. Ne5 {[%clk 00:17:45]} {[%emt
00:01:36]} Nxe5 {[%clk 00:22:32]} {[%emt 00:00:31]} 17. Bxe5 {[%clk 00:17:53]}
{[%emt 00:00:02]} f6 {[%clk 00:22:35]} {[%emt 00:00:07]} 18. Bg3 {[%clk
00:17:37]} {[%emt 00:00:24]} Bd6 {[%clk 00:22:32]} {[%emt 00:00:15]} 19. Bxd6
{[%clk 00:17:39]} {[%emt 00:00:09]} Nxd6 {[%clk 00:22:40]} {[%emt 00:00:01]} 20.
Nf3 {[%clk 00:17:48]} {[%emt 00:00:01]} Nf7 {[%clk 00:22:11]} {[%emt 00:00:39]}
21. Rfe1 {[%clk 00:11:22]} {[%emt 00:06:36]} e5 {[%clk 00:21:06]} {[%emt
00:01:15]} 22. Re2 {[%clk 00:07:46]} {[%emt 00:03:46]} Re8 {[%clk 00:19:39]}
{[%emt 00:01:37]} 23. Rec2 {[%clk 00:06:13]} {[%emt 00:01:42]} Red8 {[%clk
00:11:31]} {[%emt 00:08:19]} 24. Re2 {[%clk 00:04:55]} {[%emt 00:01:27]} Kf8
{[%clk 00:09:30]} {[%emt 00:02:12]} 25. Kf1 {[%clk 00:02:07]} {[%emt 00:02:59]}
Ke7 {[%clk 00:09:00]} {[%emt 00:00:39]} 26. Nh4 {[%clk 00:02:01]} {[%emt
00:00:16]} Nh8 {[%clk 00:08:28]} {[%emt 00:00:41]} 27. Rd1 {[%clk 00:00:57]}
{[%emt 00:01:15]} Kf7 {[%clk 00:08:21]} {[%emt 00:00:17]} 28. Red2 {[%clk
00:00:57]} {[%emt 00:00:10]} cxd4 {[%clk 00:08:03]} {[%emt 00:00:28]} 29. exd4
{[%clk 00:01:02]} {[%emt 00:00:06]} e4 {[%clk 00:08:00]} {[%emt 00:00:12]} 30.
Re2 {[%clk 00:01:09]} {[%emt 00:00:03]} g5 {[%clk 00:07:48]} {[%emt 00:00:22]}
31. Nf5 {[%clk 00:01:16]} {[%emt 00:00:02]} Ng6 {[%clk 00:07:56]} {[%emt
00:00:02]} 32. g3 {[%clk 00:01:11]} {[%emt 00:00:16]} Rd7 {[%clk 00:07:42]}
{[%emt 00:00:24]} 33. Rde1 {[%clk 00:01:11]} {[%emt 00:00:11]} Ke6 {[%clk
00:07:48]} {[%emt 00:00:03]} 34. Ne3 {[%clk 00:01:17]} {[%emt 00:00:04]} b5
{[%clk 00:07:49]} {[%emt 00:00:10]} 35. Kg2 {[%clk 00:01:05]} {[%emt 00:00:22]}
f5 {[%clk 00:07:56]} {[%emt 00:00:02]} 36. f3 {[%clk 00:01:11]} {[%emt
00:00:04]} f4 {[%clk 00:07:46]} {[%emt 00:00:20]} 37. Ng4 {[%clk 00:00:40]}
{[%emt 00:00:40]} e3 {[%clk 00:07:55]} {[%emt 00:00:01]} 38. Nxe3 {[%clk
00:00:17]} {[%emt 00:00:34]} fxe3 {[%clk 00:08:03]} {[%emt 00:00:02]} 39. Rxe3+
{[%clk 00:00:26]} Kf7 {[%clk 00:08:02]} {[%emt 00:00:11]} 40. Re6 {[%clk
00:00:25]} {[%emt 00:00:11]} Rc6 {[%clk 00:08:10]} {[%emt 00:00:02]} 41. Rxc6
{[%clk 00:00:16]} {[%emt 00:00:19]} bxc6 {[%clk 00:08:19]} {[%emt 00:00:01]} 42.
Re2 {[%clk 00:00:24]} {[%emt 00:00:03]} Ne7 {[%clk 00:08:16]} {[%emt 00:00:12]}
43. Re5 {[%clk 00:00:23]} {[%emt 00:00:11]} Kf6 {[%clk 00:08:22]} {[%emt
00:00:03]} 44. g4 {[%clk 00:00:25]} {[%emt 00:00:09]} Rd6 {[%clk 00:08:24]}
{[%emt 00:00:08]} 45. Kg3 {[%clk 00:00:31]} {[%emt 00:00:04]} Re6 {[%clk
00:08:32]} {[%emt 00:00:02]} 46. Rxe6+ {[%clk 00:00:37]} {[%emt 00:00:04]} Kxe6
{[%clk 00:08:40]} {[%emt 00:00:01]} 47. f4 {[%clk 00:00:45]} {[%emt 00:00:02]}
gxf4+ {[%clk 00:08:26]} {[%emt 00:00:24]} 48. Kxf4 {[%clk 00:00:55]} Nc8 {[%clk
00:08:35]} {[%emt 00:00:01]} 49. Kg5 {[%clk 00:00:25]} {[%emt 00:00:40]} Kf7
{[%clk 00:08:36]} {[%emt 00:00:09]} 50. b3 {[%clk 00:00:33]} {[%emt 00:00:03]}
Nd6 {[%clk 00:08:43]} {[%emt 00:00:02]} 51. a4 {[%clk 00:00:21]} {[%emt
00:00:22]} bxa4 {[%clk 00:08:43]} {[%emt 00:00:10]} 52. bxa4 {[%clk 00:00:30]}
{[%emt 00:00:01]} Ne4+ {[%clk 00:08:52]} 53. Kf5 {[%clk 00:00:30]} {[%emt
00:00:10]} Nxc3 {[%clk 00:08:58]} {[%emt 00:00:04]} 54. a5 {[%clk 00:00:39]}
{[%emt 00:00:02]} Nb5 {[%clk 00:08:59]} {[%emt 00:00:08]} 55. Ke5 {[%clk
00:00:45]} {[%emt 00:00:04]} Ke7 {[%clk 00:08:48]} {[%emt 00:00:21]} 56. h4
{[%clk 00:00:54]} {[%emt 00:00:01]} Kf7 {[%clk 00:08:47]} {[%emt 00:00:11]} 57.
h5 {[%clk 00:00:58]} {[%emt 00:00:06]} Ke7 {[%clk 00:08:47]} {[%emt 00:00:10]}
58. g5 {[%clk 00:01:06]} {[%emt 00:00:02]} Kf7 {[%clk 00:07:44]} {[%emt
00:01:12]} 59. a6 {[%clk 00:01:09]} {[%emt 00:00:07]} Ke7 {[%clk 00:07:27]}
{[%emt 00:00:28]} 60. h6 {[%clk 00:01:18]} {[%emt 00:00:01]} gxh6 {[%clk
00:07:02]} {[%emt 00:00:35]} 61. gxh6 {[%clk 00:01:26]} {[%emt 00:00:02]} Kf7
{[%clk 00:07:11]} 62. h7 {[%clk 00:00:42]} {[%emt 00:00:55]} Kg7 {[%clk
00:07:20]} {[%emt 00:00:01]} 63. a7 {[%clk 00:00:50]} {[%emt 00:00:02]} Nxa7
{[%clk 00:07:26]} {[%emt 00:00:04]} 64. Kd6 {[%clk 00:00:59]} Kxh7 {[%clk
00:07:17]} {[%emt 00:00:20]} 65. Kc7 {[%clk 00:01:07]} {[%emt 00:00:02]} Kg6
{[%clk 00:07:02]} {[%emt 00:00:24]} 66. Kb6 {[%clk 00:01:10]} {[%emt 00:00:07]}
Kf5 {[%clk 00:07:07]} {[%emt 00:00:06]} 67. Kxa7 {[%clk 00:00:29]} {[%emt
00:00:51]} Ke4 {[%clk 00:07:16]} 68. Kb6 {[%clk 00:00:32]} {[%emt 00:00:07]}
Kxd4 {[%clk 00:07:25]} {[%emt 00:00:02]} 69. Kxc6 {[%clk 00:00:40]} {[%emt
00:00:02]} Kc4 {[%clk 00:07:34]} {[%emt 00:00:01]} 0-1



[ePGN "0.1;DGT LiveChess/2.2.6"]